bitfinex-derivatives/quotes_BTCF0:USTF0_20240925
["timestamp","ask_amount","ask_price","bid_price","bid_amount"]
[1727268400589,0.718508,63744.0,63743.0,0.014]
[1727268401085,0.156878,63740.0,63739.0,0.06258561]
[1727268401287,0.607678,63740.0,63739.0,0.06258561]
[1727268401887,0.598678,63740.0,63739.0,0.06258561]
[1727268402088,0.07844,63739.0,63738.0,0.06258561]
[1727268402286,0.16844,63739.0,63738.0,0.06258966]
[1727268402485,0.09,63739.0,63737.0,0.06258966]
[1727268402691,0.431239,63740.0,63737.0,0.06258966]
[1727268402692,0.082,63738.0,63737.0,0.06258966]
[1727268402890,0.078445,63735.0,63734.0,0.15664732]
[1727268403189,0.078445,63735.0,63734.0,0.26574738]
[1727268403190,0.168445,63735.0,63734.0,0.26574738]
[1727268403594,0.168445,63735.0,63734.0,0.15664732]
[1727268404689,0.169445,63735.0,63734.0,0.15664732]
[1727268405190,0.168445,63735.0,63734.0,0.15664732]
[1727268405407,0.169445,63735.0,63734.0,0.26572389]
[1727268405596,0.169445,63735.0,63734.0,0.15664732]
[1727268405792,0.170445,63735.0,63734.0,0.15664732]
[1727268406198,0.170445,63735.0,63734.0,0.26573434]
[1727268408189,0.170445,63735.0,63734.0,0.18753302]
[1727268409493,0.170445,63735.0,63734.0,0.18759152]
[1727268410089,0.13119464,63735.0,63734.0,0.18759152]
[1727268414493,0.13119464,63735.0,63734.0,0.18742272]
[1727268415500,0.13119464,63735.0,63734.0,0.26577305]
[1727268416692,0.092,63735.0,63734.0,0.15679633]
[1727268416908,0.170445,63735.0,63734.0,0.15679633]
[1727268417498,0.170445,63735.0,63734.0,0.078446]
[1727268417699,0.092,63735.0,63734.0,0.078446]
[1727268418210,0.170445,63735.0,63734.0,0.078446]
[1727268420103,0.078448,63733.0,63732.0,0.07835033]
[1727268420298,0.078448,63733.0,63732.0,0.078449]
[1727268420501,0.07845,63731.0,63730.0,0.0023533]
[1727268420697,0.07845,63731.0,63730.0,0.08071311]
[1727268421096,0.07845,63731.0,63730.0,0.18987259]
[1727268421303,0.07845,63731.0,63730.0,0.18985774]
[1727268421503,0.07845,63731.0,63730.0,0.15916511]
[1727268422316,0.07945,63731.0,63730.0,0.0023533]
[1727268422608,0.08045,63731.0,63730.0,0.0023533]
[1727268422815,0.08045,63731.0,63730.0,0.06504114]
[1727268424207,0.09897249,63731.0,63730.0,0.06504114]
[1727268427019,0.09897249,63731.0,63730.0,0.14349314]
[1727268427215,0.18897249,63731.0,63730.0,0.14349314]
[1727268427924,0.11052249,63731.0,63730.0,0.14349314]
[1727268428307,0.11052249,63731.0,63730.0,0.0808053]
[1727268429111,0.18897249,63731.0,63730.0,0.1435035]
[1727268429320,0.18897249,63731.0,63730.0,0.0808053]
[1727268430316,0.11052249,63731.0,63730.0,0.0808053]
[1727268435812,0.18897249,63731.0,63730.0,0.0808053]
[1727268436018,0.54977249,63731.0,63730.0,0.0808053]
[1727268439818,0.38132249,63731.0,63730.0,0.0808053]
[1727268440018,0.47132249,63731.0,63730.0,0.0808053]
[1727268441219,0.47132249,63731.0,63730.0,0.15916511]
[1727268442526,0.47132249,63731.0,63730.0,0.26831477]
[1727268443229,0.47132249,63731.0,63730.0,0.0808053]
[1727268443429,0.47132249,63731.0,63730.0,0.15916511]
[1727268443630,0.47132249,63731.0,63730.0,0.0808053]
[1727268444130,0.54977249,63731.0,63730.0,0.0808053]
[1727268444627,0.54977249,63731.0,63730.0,0.26838117]
[1727268444814,0.54977249,63731.0,63730.0,0.15916511]
[1727268444815,0.47132249,63731.0,63730.0,0.15916511]
[1727268445223,0.47132249,63731.0,63730.0,0.26834479]
[1727268447232,0.47132249,63731.0,63730.0,0.18998498]
[1727268450638,0.54977249,63731.0,63730.0,0.18763168]
[1727268451938,0.54977249,63731.0,63730.0,0.078452]
[1727268452134,0.54977249,63731.0,63730.0,0.18768709]
[1727268456841,0.54977249,63731.0,63730.0,0.078452]
[1727268457048,0.54977249,63731.0,63730.0,0.1876954]
[1727268471544,0.54977249,63731.0,63730.0,0.18776158]
[1727268473639,0.47132249,63731.0,63730.0,0.18776158]
[1727268474945,0.47132249,63731.0,63730.0,0.078452]
[1727268475948,0.54977249,63731.0,63730.0,0.078452]
[1727268476254,0.078454,63728.0,63727.0,0.078455]
[1727268476448,0.168454,63728.0,63727.0,0.078455]
[1727268478858,0.169454,63728.0,63727.0,0.078455]
[1727268479060,0.170454,63728.0,63727.0,0.078455]
[1727268481158,0.170454,63728.0,63721.0,0.06279362]
[1727268481159,0.078457,63726.0,63721.0,0.06279362]
[1727268481358,0.09,63722.0,63721.0,0.078463]
[1727268481551,0.09,63722.0,63721.0,0.14125662]
[1727268481751,0.09,63722.0,63721.0,0.078463]
[1727268481963,0.168461,63722.0,63721.0,0.31825052]
[1727268482265,0.168461,63722.0,63721.0,0.18785703]
[1727268483060,0.168461,63722.0,63721.0,0.20356125]
[1727268483246,0.18737712,63722.0,63721.0,0.10939403]
[1727268483455,0.18837712,63722.0,63721.0,0.10939403]
[1727268484263,0.18837712,63722.0,63721.0,0.18783302]
[1727268484855,0.078463,63721.0,63720.0,0.07843899]
[1727268485061,0.168463,63721.0,63720.0,0.1876172]
[1727268485258,0.078464,63720.0,63719.0,0.07843899]
[1727268485560,0.09,63721.0,63717.0,0.07843899]
[1727268485756,0.168466,63718.0,63717.0,0.07842292]
[1727268485957,0.168466,63718.0,63717.0,0.18768977]
[1727268486260,0.078468,63717.0,63714.0,0.07842292]
[1727268486453,0.078473,63713.0,63711.0,0.078474]
[1727268486652,0.3608,63715.0,63712.0,0.18787751]
[1727268486955,0.43927,63715.0,63713.0,0.18780473]
[1727268487150,0.43927,63715.0,63713.0,0.07840022]
[1727268487361,0.078471,63714.0,63712.0,0.15687322]
[1727268487560,0.109971,63714.0,63712.0,0.15687322]
[1727268487864,0.09,63713.0,63712.0,0.15687322]
[1727268488063,0.09,63713.0,63712.0,0.26623148]
[1727268488261,0.09,63713.0,63708.0,0.09416722]
[1727268488262,0.168472,63713.0,63711.0,0.07840022]
[1727268488467,0.09,63712.0,63711.0,0.07840022]
[1727268488661,0.09,63712.0,63711.0,0.26620342]
[1727268489362,0.168474,63712.0,63711.0,0.078475]
[1727268489563,0.078475,63711.0,63708.0,0.07840022]
[1727268489763,0.1,63709.0,63708.0,0.15687922]
[1727268489964,0.4608,63709.0,63708.0,0.078479]
[1727268490164,0.4608,63709.0,63708.0,0.14114754]
[1727268490366,0.4608,63709.0,63708.0,0.078479]
[1727268491865,0.4608,63709.0,63708.0,0.12544998]
[1727268492059,0.4608,63709.0,63708.0,0.12544952]
[1727268492266,0.540277,63709.0,63708.0,0.04697052]
[1727268492574,0.078481,63706.0,63705.0,0.04697052]
[1727268492866,0.078484,63704.0,63703.0,0.04697052]
[1727268493272,0.078485,63703.0,63701.0,0.04697052]
[1727268493477,0.1,63701.0,63700.0,0.12545852]
[1727268493677,0.1,63701.0,63700.0,0.12543063]
[1727268494271,0.1,63701.0,63700.0,0.078488]
[1727268494474,0.3608,63703.0,63702.0,0.078486]
[1727268494673,0.001,63706.0,63705.0,0.156964]
[1727268494971,0.001,63706.0,63705.0,0.078482]
[1727268495371,0.002,63706.0,63705.0,0.110082]
[1727268495581,0.002,63706.0,63705.0,0.15699665]
[1727268495777,0.092,63706.0,63705.0,0.15699665]
[1727268495983,0.091,63706.0,63705.0,0.15699665]
[1727268496571,0.092,63706.0,63705.0,0.15699665]
[1727268497084,0.002,63706.0,63705.0,0.110082]
[1727268498774,0.092,63706.0,63705.0,0.110082]
[1727268502182,0.092,63706.0,63705.0,0.17275054]
[1727268504782,0.170481,63706.0,63705.0,0.17275054]
[1727268504985,0.170481,63706.0,63705.0,0.110082]
[1727268506273,0.170481,63706.0,63705.0,0.17275054]
[1727268506577,0.170481,63706.0,63705.0,0.110082]
[1727268506885,0.170481,63706.0,63705.0,0.17267709]
[1727268507080,0.170481,63706.0,63705.0,0.09419509]
[1727268508377,0.170481,63706.0,63705.0,0.0316]
[1727268509892,0.170481,63706.0,63703.0,0.078484]
[1727268510293,0.170481,63706.0,63705.0,0.06265229]
[1727268511382,0.170481,63706.0,63703.0,0.078484]
[1727268511980,0.170481,63706.0,63704.0,0.07840022]
[1727268512685,0.170481,63706.0,63705.0,0.07840022]
[1727268513380,0.170481,63706.0,63705.0,0.18778455]
[1727268513584,0.169481,63706.0,63705.0,0.18778455]
[1727268513781,0.170481,63706.0,63705.0,0.18778455]
[1727268514191,0.169481,63706.0,63705.0,0.18778455]
[1727268514391,0.170481,63706.0,63705.0,0.10938433]
[1727268518398,0.078482,63705.0,63704.0,0.09416722]
[1727268518586,0.078482,63705.0,63704.0,0.20362506]
[1727268518787,0.178482,63705.0,63704.0,0.10945784]
[1727268519292,0.256964,63705.0,63704.0,0.10945784]
[1727268519482,0.178482,63705.0,63704.0,0.18811331]
[1727268519683,0.256964,63705.0,63704.0,0.07846649]
[1727268519885,0.078484,63704.0,63702.0,0.07846649]
[1727268520089,0.25697,63703.0,63702.0,0.07846649]
[1727268520301,0.25697,63703.0,63694.0,0.0037]
[1727268520302,0.078486,63702.0,63701.0,0.07846649]
[1727268520592,0.4608,63702.0,63697.0,0.09416722]
[1727268520795,0.078489,63700.0,63699.0,0.07845775]
[1727268521091,0.439286,63702.0,63698.0,0.10968538]
[1727268521092,0.07849,63699.0,63698.0,0.07845775]
[1727268521302,0.078491,63698.0,63697.0,0.07845775]
[1727268521598,0.078492,63697.0,63693.0,0.09416722]
[1727268521889,0.1,63695.0,63694.0,0.2040068]
[1727268522083,0.1,63695.0,63694.0,0.10983958]
[1727268522487,0.1,63695.0,63694.0,0.28244538]
[1727268522796,0.1,63697.0,63694.0,0.10983958]
[1727268522983,0.1,63697.0,63696.0,0.078493]
[1727268523185,0.1,63697.0,63696.0,0.18816824]
[1727268523789,0.1,63697.0,63696.0,0.28227592]
[1727268523991,0.001,63699.0,63698.0,0.078491]
[1727268524194,0.001,63699.0,63698.0,0.63896624]
[1727268524388,0.001,63699.0,63698.0,0.73307392]
[1727268524588,0.0326,63705.0,63704.0,0.078484]
[1727268524890,0.01831387,63708.0,63704.0,0.47029822]
[1727268525090,0.09,63710.0,63709.0,0.078477]
[1727268525488,0.09,63710.0,63709.0,0.15688252]
[1727268527491,0.092,63710.0,63709.0,0.15688252]
[1727268529998,0.092,63710.0,63709.0,0.078477]
[1727268533694,0.092,63710.0,63709.0,0.15688252]
[1727268534291,0.1236,63710.0,63709.0,0.15688252]
[1727268534895,0.1236,63710.0,63709.0,0.078477]
[1727268537703,0.202076,63710.0,63709.0,0.078477]
[1727268537912,0.202076,63710.0,63708.0,0.07840552]
[1727268537913,0.078477,63709.0,63708.0,0.07840552]
[1727268538096,0.03921144,63709.0,63708.0,0.18766436]
[1727268539006,0.03921144,63709.0,63708.0,0.07840552]
[1727268539908,0.04021144,63709.0,63708.0,0.07840552]
[1727268540804,0.04021144,63709.0,63706.0,0.15688652]
[1727268540805,0.07848,63707.0,63706.0,0.15688652]
[1727268540993,0.53928,63707.0,63706.0,0.078481]
[1727268541812,0.53928,63707.0,63704.0,0.06272056]
[1727268542108,0.53928,63707.0,63703.0,0.078485]
[1727268542109,0.178482,63705.0,63703.0,0.06272341]
[1727268542608,0.078485,63703.0,63702.0,0.06272341]
[1727268542907,0.178485,63703.0,63702.0,0.06272341]
[1727268543405,0.078486,63702.0,63701.0,0.06272341]
[1727268543611,0.178486,63702.0,63701.0,0.06272341]
[1727268543805,0.078487,63701.0,63700.0,0.06272341]
[1727268544109,0.078489,63700.0,63699.0,0.06272341]
[1727268544299,0.178489,63700.0,63699.0,0.06272341]
[1727268544499,0.07849,63699.0,63698.0,0.06272341]
[1727268544699,0.20939,63699.0,63698.0,0.06272341]
[1727268545300,0.078492,63697.0,63696.0,0.078493]
[1727268547106,0.079492,63697.0,63696.0,0.078493]
[1727268547505,0.079492,63697.0,63696.0,0.14117973]
[1727268547703,0.080492,63697.0,63696.0,0.14117973]
[1727268547904,0.080492,63697.0,63696.0,0.06268673]
[1727268548208,0.078495,63695.0,63692.0,0.082197]
[1727268548404,0.078495,63695.0,63694.0,0.06268182]
[1727268549405,0.078496,63694.0,63693.0,0.06268182]
[1727268549602,0.178496,63694.0,63693.0,0.06268182]
[1727268550803,0.211096,63694.0,63693.0,0.06268182]
[1727268551004,0.212096,63694.0,63693.0,0.06268182]
[1727268551201,0.213096,63694.0,63693.0,0.06268182]
[1727268551408,0.213096,63694.0,63692.0,0.14117982]
[1727268552516,0.213096,63694.0,63692.0,0.078498]
[1727268552517,0.212096,63694.0,63692.0,0.078498]
[1727268552714,0.213096,63694.0,63692.0,0.078498]
[1727268553410,0.078497,63693.0,63692.0,0.078498]
[1727268554911,0.079497,63693.0,63692.0,0.078498]
[1727268556221,0.080497,63693.0,63692.0,0.078498]
[1727268557417,0.002,63693.0,63692.0,0.078498]
[1727268563131,0.002,63693.0,63692.0,0.21967782]
[1727268563331,0.002,63693.0,63692.0,0.14117982]
[1727268563723,0.002,63693.0,63692.0,0.21963825]
[1727268563925,0.102,63693.0,63692.0,0.156996]
[1727268564823,0.102,63693.0,63692.0,0.078498]
[1727268566427,0.102,63693.0,63692.0,0.156996]
[1727268566619,0.102,63693.0,63692.0,0.078498]
[1727268567027,0.102,63693.0,63692.0,0.156996]
[1727268568337,0.102,63693.0,63692.0,0.078498]
[1727268568626,0.002,63693.0,63692.0,0.156996]
[1727268568929,0.002,63693.0,63692.0,0.235494]
[1727268569322,0.002,63693.0,63692.0,0.156996]
[1727268569727,0.002,63693.0,63692.0,0.235494]
[1727268570334,0.002,63693.0,63692.0,0.335494]
[1727268572030,0.002,63693.0,63692.0,0.44501529]
[1727268572926,0.002,63693.0,63692.0,0.47731529]
[1727268573428,0.002,63693.0,63692.0,0.37731529]
[1727268574324,0.002,63693.0,63692.0,1.75067437]
[1727268574637,0.002,63693.0,63692.0,1.75062558]
[1727268574839,0.1,63700.0,63699.0,0.15698]
[1727268575440,0.11773378,63700.0,63699.0,0.15698]
[1727268576633,0.11873378,63700.0,63699.0,0.15698]
[1727268577544,0.11973378,63700.0,63699.0,0.15698]
[1727268579137,0.22877052,63700.0,63699.0,0.15698]
[1727268579836,0.22877052,63700.0,63699.0,0.07849]
[1727268580234,0.26720959,63700.0,63699.0,0.07849]
[1727268580537,0.15817285,63700.0,63699.0,0.07849]
[1727268581333,0.11973378,63700.0,63699.0,0.07849]
[1727268581533,0.15817281,63700.0,63699.0,0.07849]
[1727268581838,0.11973378,63700.0,63699.0,0.07849]
[1727268582239,0.11973378,63700.0,63692.0,0.0037]
[1727268582240,0.48053378,63700.0,63692.0,0.0037]
[1727268582437,0.1,63693.0,63689.0,0.0037]
[1727268582638,0.1,63693.0,63688.0,0.078503]
[1727268582639,0.1,63689.0,63688.0,0.078503]
[1727268582846,0.1,63689.0,63688.0,0.157006]
[1727268584336,0.11797656,63689.0,63688.0,0.157006]
[1727268584532,0.11897656,63689.0,63688.0,0.157006]
[1727268585049,0.11997656,63689.0,63688.0,0.157006]
[1727268586748,0.11897656,63689.0,63688.0,0.157006]
[1727268586947,0.11997656,63689.0,63688.0,0.157006]
[1727268587136,0.01997656,63689.0,63688.0,0.3971666]
[1727268587343,0.11997656,63689.0,63688.0,0.3971666]
[1727268588242,0.11997656,63689.0,63688.0,0.26657023]
[1727268591047,0.11997656,63689.0,63688.0,0.36069123]
[1727268594055,0.11997656,63689.0,63688.0,0.36052919]
[1727268596148,0.11997656,63689.0,63670.0,0.16025236]
[1727268596149,0.078511,63688.0,63670.0,0.16025236]
[1727268596359,0.8216,63671.0,63664.0,0.00116]
[1727268596543,0.3608,63665.0,63659.0,0.078546]
[1727268596744,0.3608,63665.0,63660.0,0.078545]
[1727268597044,0.3608,63665.0,63657.0,0.0326]
[1727268597852,0.37881321,63665.0,63657.0,0.0326]
[1727268598157,0.37981321,63665.0,63657.0,0.0326]
[1727268598347,0.14,63664.0,63657.0,0.0326]
[1727268598850,0.3618,63665.0,63661.0,0.078544]
[1727268599150,0.001,63665.0,63661.0,0.078544]
[1727268599346,0.002,63665.0,63661.0,0.078544]
[1727268601161,0.001,63664.0,63661.0,0.078544]
[1727268601368,0.3608,63671.0,63657.0,0.0326]
[1727268601369,0.3608,63674.0,63664.0,0.47124]
[1727268601661,0.3608,63680.0,63675.0,0.078527]
[1727268601865,0.01788216,63677.0,63675.0,0.078527]
[1727268602063,0.01788216,63677.0,63670.0,0.3608]
[1727268602064,0.3608,63680.0,63678.0,0.078522]
[1727268603570,0.3608,63680.0,63673.0,0.07853]
[1727268604477,0.3618,63680.0,63675.0,0.001]
[1727268604870,0.3638,63680.0,63675.0,0.001]
[1727268605066,0.442322,63680.0,63673.0,0.08053]
[1727268605777,0.440322,63680.0,63675.0,0.002]
[1727268606175,0.440322,63680.0,63673.0,0.07853]
[1727268606176,0.439322,63680.0,63673.0,0.07853]
[1727268606377,0.440322,63680.0,63673.0,0.08053]
[1727268606583,0.441322,63680.0,63673.0,0.08053]
[1727268606765,0.441322,63680.0,63674.0,0.078528]
[1727268607976,0.441322,63680.0,63673.0,0.002]
[1727268608380,0.440322,63680.0,63673.0,0.002]
[1727268608573,0.440322,63680.0,63668.0,0.0651]
[1727268608574,0.440322,63680.0,63675.0,0.001]
[1727268608773,0.440322,63680.0,63675.0,0.079526]
[1727268608973,0.440322,63680.0,63676.0,0.078526]
[1727268609282,0.441322,63680.0,63677.0,0.078524]
[1727268609682,0.440322,63680.0,63677.0,0.078524]
[1727268609981,0.440322,63680.0,63678.0,0.078523]
[1727268609982,0.441322,63680.0,63678.0,0.078523]
[1727268610285,0.441322,63680.0,63675.0,0.001]
[1727268610286,0.3628,63680.0,63675.0,0.001]
[1727268610580,0.5008,63676.0,63675.0,0.001]
[1727268611183,0.579326,63676.0,63675.0,0.001]
[1727268611686,0.078528,63674.0,63671.0,0.078531]
[1727268611888,0.5016,63676.0,63673.0,0.078529]
[1727268612181,0.5016,63676.0,63668.0,0.0651]
[1727268612182,0.580326,63676.0,63675.0,0.001]
[1727268613286,0.5982558,63676.0,63675.0,0.001]
[1727268615381,0.5992558,63676.0,63675.0,0.001]
[1727268615984,0.2374558,63676.0,63675.0,0.001]
[1727268616180,0.5982558,63676.0,63675.0,0.001]
[1727268618383,0.67637386,63676.0,63675.0,0.001]
[1727268618888,0.67637386,63676.0,63675.0,0.079527]
[1727268620380,0.5982558,63676.0,63675.0,0.079527]
[1727268621190,0.5982558,63676.0,63675.0,0.079527]
[1727268621382,0.62371817,63676.0,63675.0,0.079527]
[1727268621886,0.67611771,63676.0,63675.0,0.079527]
[1727268622374,0.5982558,63676.0,63675.0,0.079527]
[1727268622687,0.62371823,63676.0,63675.0,0.079527]
[1727268623378,0.62371823,63676.0,63675.0,0.001]
[1727268624288,0.5982558,63676.0,63675.0,0.001]
[1727268624476,0.66058938,63676.0,63675.0,0.079527]
[1727268625292,0.58206338,63676.0,63675.0,0.079527]
[1727268625481,0.5197298,63676.0,63675.0,0.079527]
[1727268626483,0.4797298,63676.0,63675.0,0.079527]
[1727268630996,0.3797298,63676.0,63675.0,0.079527]
[1727268631192,0.3797298,63676.0,63675.0,0.158054]
[1727268631396,0.3618,63676.0,63675.0,0.236581]
[1727268639297,0.38725953,63676.0,63675.0,0.236581]
[1727268640098,0.38725913,63676.0,63675.0,0.236581]
[1727268642808,0.48095224,63676.0,63675.0,0.236581]
[1727268644406,0.38725913,63676.0,63675.0,0.236581]
[1727268645803,0.48094671,63676.0,63675.0,0.236581]
[1727268646006,0.38725913,63676.0,63675.0,0.236581]
[1727268646209,0.48094671,63676.0,63675.0,0.236581]
[1727268647407,0.3618,63676.0,63675.0,0.236581]
[1727268651602,0.001,63676.0,63675.0,0.236581]
[1727268651811,0.3618,63676.0,63675.0,0.236581]
[1727268654011,0.3618,63676.0,63675.0,0.158054]
[1727268654310,0.38725929,63676.0,63675.0,0.158054]
[1727268660415,0.43184382,63676.0,63675.0,0.158054]
[1727268660804,0.38725929,63676.0,63675.0,0.158054]
[1727268661313,0.38725929,63676.0,63675.0,0.079527]
[1727268661314,0.48110615,63676.0,63675.0,0.079527]
[1727268661611,0.38725929,63676.0,63675.0,0.079527]
[1727268662411,0.3618,63676.0,63675.0,0.079527]
[1727268663806,0.440326,63676.0,63675.0,0.001]
[1727268664006,0.518852,63676.0,63675.0,0.001]
[1727268664200,0.64431412,63676.0,63675.0,0.001]
[1727268665304,0.73815133,63676.0,63675.0,0.001]
[1727268665607,0.70851412,63676.0,63675.0,0.001]
[1727268666709,0.80235133,63676.0,63675.0,0.001]
[1727268666914,0.44155133,63676.0,63675.0,0.001]
[1727268667099,1.16315133,63676.0,63675.0,0.001]
[1727268667504,1.06931412,63676.0,63675.0,0.001]
[1727268669321,1.1131203,63676.0,63675.0,0.001]
[1727268670613,1.06931412,63676.0,63675.0,0.001]
[1727268672515,0.34771412,63676.0,63675.0,0.001]
[1727268672814,1.06931412,63676.0,63675.0,0.001]
[1727268673202,1.06931412,63676.0,63668.0,0.0037]
[1727268673203,0.078535,63669.0,63668.0,0.0037]
[1727268673408,0.38626461,63669.0,63663.0,0.0015764]
[1727268673705,0.1,63664.0,63663.0,0.0015764]
[1727268674101,0.178541,63664.0,63663.0,0.0801184]
[1727268674513,0.24088482,63664.0,63663.0,0.0801184]
[1727268675315,0.16234382,63664.0,63663.0,0.0801184]
[1727268675612,0.178541,63664.0,63663.0,0.0801184]
[1727268675815,0.178541,63664.0,63663.0,0.0015764]
[1727268675816,0.649781,63664.0,63663.0,0.0015764]
[1727268676217,0.649781,63664.0,63657.0,0.078549]
[1727268676518,0.4608,63658.0,63657.0,0.078549]
[1727268678006,0.47905683,63658.0,63657.0,0.078549]
[1727268679209,0.48005683,63658.0,63657.0,0.078549]
[1727268679812,0.48105683,63658.0,63657.0,0.078549]
[1727268680512,0.38105683,63658.0,63657.0,0.178549]
[1727268680717,0.38105683,63658.0,63657.0,0.257098]
[1727268684121,0.38105683,63658.0,63657.0,0.157098]
[1727268684721,0.38105683,63658.0,63657.0,0.220498]
[1727268686325,0.38105683,63658.0,63657.0,0.250898]
[1727268687317,0.3628,63658.0,63657.0,0.329447]
[1727268687526,0.3608,63664.0,63657.0,1.41929991]
[1727268687527,0.01845157,63663.0,63657.0,1.41929991]
[1727268687821,0.3608,63673.0,63672.0,0.157062]
[1727268688027,0.261,63673.0,63672.0,0.157062]
[1727268688224,0.06316076,63683.0,63678.0,0.078523]
[1727268688225,0.3608,63679.0,63678.0,0.078523]
[1727268688519,0.3608,63679.0,63678.0,0.178523]
[1727268688722,0.3608,63679.0,63678.0,0.82484134]
[1727268688916,0.3608,63679.0,63678.0,0.35372134]
[1727268689523,0.3608,63679.0,63678.0,0.078523]
[1727268689827,0.3658,63679.0,63678.0,0.078523]
[1727268690324,0.3688,63679.0,63678.0,0.078523]
[1727268692837,0.18701904,63679.0,63678.0,0.078523]
[1727268693528,0.18667837,63679.0,63678.0,0.078523]
[1727268693728,0.18667366,63679.0,63678.0,0.078523]
[1727268695617,0.07764148,63679.0,63678.0,0.078523]
[1727268700825,0.086522,63679.0,63678.0,0.078523]
[1727268701725,0.008,63679.0,63678.0,0.078523]
[1727268704627,0.3688,63679.0,63678.0,0.078523]
[1727268706932,0.008,63679.0,63678.0,0.078523]
[1727268707245,0.3688,63679.0,63678.0,0.078523]
[1727268707941,0.39426033,63679.0,63678.0,0.078523]
[1727268708638,0.12683896,63679.0,63678.0,0.078523]
[1727268708846,0.48763896,63679.0,63678.0,0.078523]
[1727268709224,0.39426033,63679.0,63678.0,0.078523]
[1727268710448,0.48763896,63679.0,63678.0,0.078523]
[1727268712141,0.48773469,63679.0,63678.0,0.078523]
[1727268712444,0.49426033,63679.0,63678.0,0.078523]
[1727268713133,0.57278233,63679.0,63678.0,0.078523]
[1727268714742,0.61690572,63679.0,63678.0,0.078523]
[1727268714947,0.547322,63679.0,63678.0,0.078523]
[1727268715446,0.60969466,63679.0,63678.0,0.078523]
[1727268715933,0.547322,63679.0,63678.0,0.078523]
[1727268716331,0.078526,63677.0,63676.0,0.078526]
[1727268716531,0.178526,63677.0,63676.0,0.078526]
[1727268717546,0.25649182,63677.0,63676.0,0.078526]
[1727268718047,0.178526,63677.0,63676.0,0.078526]
[1727268719248,0.181526,63677.0,63676.0,0.078526]
[1727268721346,0.157052,63676.0,63675.0,0.04703809]
[1727268722740,0.078528,63674.0,63673.0,0.07853]
[1727268722943,0.24809713,63674.0,63673.0,0.07853]
[1727268724446,0.24909713,63674.0,63673.0,0.07853]
[1727268725646,0.24903878,63674.0,63673.0,0.07853]
[1727268726447,0.07051078,63674.0,63673.0,0.07853]
[1727268727241,0.0705974,63674.0,63673.0,0.07853]
[1727268727746,0.07061362,63674.0,63673.0,0.07853]
[1727268727939,0.12646181,63674.0,63673.0,0.07853]
[1727268728337,0.17059158,63674.0,63673.0,0.07853]
[1727268729143,0.24911958,63674.0,63673.0,0.07853]
[1727268729946,0.179528,63674.0,63673.0,0.07853]
[1727268737757,0.540328,63674.0,63673.0,0.07853]
[1727268741451,0.3618,63674.0,63673.0,0.14117714]
[1727268744744,0.3618,63674.0,63673.0,0.07853]
[1727268745052,0.54039751,63674.0,63673.0,0.07853]
[1727268745249,0.48257226,63674.0,63673.0,0.17853]
[1727268745444,0.48257226,63674.0,63673.0,0.25706]
[1727268746252,0.06956533,63674.0,63673.0,1.40675]
[1727268746556,0.01834817,63680.0,63679.0,0.157044]
[1727268746859,0.3608,63681.0,63680.0,0.157042]
[1727268746860,0.3616,63681.0,63680.0,0.157042]
[1727268747152,0.3608,63681.0,63680.0,0.219742]
[1727268747348,0.3608,63681.0,63680.0,0.3972114]
[1727268747749,0.3645,63688.0,63686.0,0.078514]
[1727268748065,0.3608,63688.0,63686.0,0.078514]
[1727268749046,0.0201948,63687.0,63686.0,0.078514]
[1727268749253,0.0341948,63687.0,63686.0,0.078514]
[1727268750554,0.01635612,63687.0,63686.0,0.078514]
[1727268751357,0.02635612,63687.0,63686.0,0.078514]
[1727268752049,0.11987606,63687.0,63686.0,0.078514]
[1727268752249,0.02635612,63687.0,63686.0,0.078514]
[1727268753752,0.02635612,63687.0,63686.0,0.12564736]
[1727268754458,0.02635612,63687.0,63686.0,0.078514]
[1727268758755,0.02635612,63687.0,63686.0,0.157028]
[1727268761257,0.10420782,63687.0,63686.0,0.157028]
[1727268762655,0.10420782,63687.0,63686.0,0.517828]
[1727268763758,0.10420782,63687.0,63686.0,1.24015589]
[1727268767371,0.10420782,63687.0,63686.0,0.86911589]
[1727268767971,0.10420782,63687.0,63686.0,1.34015589]
[1727268767972,0.02635612,63687.0,63686.0,1.34015589]
[1727268768867,0.02635612,63687.0,63686.0,0.86911589]
[1727268769260,0.024,63687.0,63686.0,1.34015589]
[1727268769659,0.024,63687.0,63686.0,1.4027864]
[1727268770367,0.024,63687.0,63686.0,1.42107451]
[1727268770766,0.024,63687.0,63686.0,1.35843804]
[1727268770969,0.024,63687.0,63686.0,0.88739804]
[1727268771160,0.024,63687.0,63686.0,0.86911589]
[1727268773274,0.024,63687.0,63686.0,0.93175236]
[1727268774070,0.024,63687.0,63686.0,0.86911589]
[1727268775575,0.024,63687.0,63686.0,0.50831589]
[1727268776369,0.024,63687.0,63686.0,0.5867351]
[1727268777377,0.024,63687.0,63686.0,0.68515649]
[1727268781769,0.024,63687.0,63686.0,0.5867351]
[1727268781988,0.024,63687.0,63686.0,0.5082211]
[1727268783280,0.0494531,63687.0,63686.0,0.50831589]
[1727268783486,0.0037,63695.0,63693.0,0.15701]
[1727268783784,0.04374826,63694.0,63693.0,0.235515]
[1727268783976,0.031,63698.0,63695.0,0.078503]
[1727268784287,0.04383866,63697.0,63696.0,0.157002]
[1727268784481,0.04383866,63697.0,63696.0,0.33277235]
[1727268784681,0.04383866,63697.0,63696.0,0.42277235]
[1727268785084,0.04383866,63697.0,63696.0,0.43277235]
[1727268786679,0.04383866,63697.0,63696.0,0.43377235]
[1727268786680,0.05683866,63697.0,63696.0,0.43377235]
[1727268787070,0.05588951,63697.0,63696.0,0.43377235]
[1727268787277,0.013,63697.0,63696.0,0.51227335]
[1727268787576,0.027,63697.0,63696.0,0.50227335]
[1727268787990,0.027,63697.0,63696.0,0.51227335]
[1727268788884,0.027,63697.0,63696.0,0.50227335]
[1727268789491,0.027,63697.0,63696.0,0.51227335]
[1727268789876,0.027,63697.0,63696.0,0.50227335]